{"text_format":"1","workbook":"xlsx","n_sheets":5,"sheets":["GRUNDDATEN","Ehrungsantrag","MANNSCHAFTEN","Mannschaft","EINZEL"],"not_rendered":{"charts":0,"images":0,"macros":1,"external_links":0,"defined_names":16,"comments":0,"pivot_tables":0},"unopened":[],"bounds":{"document_bytes":16777216,"sheet_cells":100000,"rows_first":2000,"rows_last":500,"rows_between":2000,"halvings":0,"cell_chars":16384,"cell_head_chars":4096},"cells_cut":0,"cells_raw":0,"read":"whole","date_system":"1900"}

{"sheet":"GRUNDDATEN","index":0,"n_rows":36,"n_cols":6,"rows_kept":36,"cut":false,"hidden":true,"merged":[]}
["Sportarten",null,"Wettkampf",null,"Verein","Kurz"]
["Agility",null,"Verbandsmeisterschaften",null,"1. TAEKWON-DO-Club Bretten e.V.","Taekwon-Do"]
["Basketball",null,"Bezirksmeisterschaften",null,"Aikido Bretten","Aikido"]
["Blasrohrschießen",null,"Badische Meisterschaften",null,"Akademie Karate Kanzen e.V.","Ak. Kanzen"]
["Bogenschießen",null,"Baden-Württembergische Meisterschaften",null,"Automobilclub Bretten e.V.","AC Bretten"]
["Fahnenschwingen",null,"Süddeutsche Meisterschaften",null,"CVJM Diedelsheim","CVJM"]
["Fahrrad-Geschicklichkeit",null,"Westdeutsche Meisterschaften",null,"Edith-Stein-Gymnasium","ESG"]
["Faustball",null,"Deutsche Meisterschaften",null,"Fanfaren- und Trommlerzug 1504 Bretten e.V.","Fanfarenzug"]
["Fußball",null,"Europameisterschaften",null,"Fußballclub 1935 e.V. Neibsheim","FC Neibsheim"]
["Gerätturnen",null,"Weltmeisterschaften",null,"FV 1920 \"Viktoria\" Bauerbach e.V.","FV Bauerbach"]
["Gruppenwettkämpfe (TGW/SGW)",null,"Meister u. Aufstieg",null,"Hundesportverein Bauerbach e.V. (HSV)","HSV Bau."]
["Handball",null,"Jugend trainiert f. Olympia, Landesfinale",null,"Johann-Peter-Hebel Schule","Hebel"]
["Judo",null,"Jugend trainiert f. Olympia, Bundesfinale",null,"Judokan Bretten e.V.","Judokan"]
["Karate",null,"Sportabzeichen",null,"Kleinkaliber-Schützenverein 1923 Bretten e.V.","KKS Bretten"]
["Kickboxen",null,"Teilnahme an Olympischen Spielen",null,"Kleinkaliber-Schützenverein Bauerbach e.V.","KK Bauerbach"]
["Leichtathletik",null,"Teilnahme an Weltmeisterschaften",null,"Kraichgau-Fahnenschwinger Bretten e.V.","Kraichgau FS"]
["Mehrkämpfe",null,"Teilnahme an Paralympics",null,"Melanchthon-Gymnasium","MGB"]
["Radsport",null,"Teilnahme an World Games",null,"Melanchthon Herolde Bretten e.V.","Herolde"]
["Reiten",null,"Mitwirkung in Deutscher Nataionalmannschaft",null,"Rad-Sport-Club Bretten e.V.","RSC"]
["RSG",null,"Deutsches Turnfest",null,"Reitclub Bretten e.V.","Reitclub"]
["Rugby",null,"Landesturnfest",null,"Schillerschule Bretten","Schiller"]
["Taekwondo",null,"Bundessiegerprüfung",null,"Sportclub Sprantal 82 e.V.","SC Sprantal"]
["Tanzen",null,null,null,"Sportverein (SV) Gölshausen 1947","SV Gölshausen"]
["Triathlon",null,null,null,"Sternfahrerclub Diedelsheim e.V.","Sternfahrer"]
["Schießsport",null,null,null,"SV Kickers Büchig 1947 e.V.","Kickers Büchig"]
["Sportabzeichen",null,null,null,"Taekwondo-Treff Bretten","T-Treff"]
["Swim & Run",null,null,null,"Tennis-Club Blau-Weiß Bretten e.V.","TC Bretten"]
["Tennis",null,null,null,"Tennisclub Diedelsheim e. V.","TC Diedelsheim"]
["Volleyball",null,null,null,"Tischtennisfreunde (TTF) Ruit e.V.","TT Ruit"]
[null,null,null,null,"Turn- und Sportverein 1891 Rinklingen e.V.","TSV Rinklingen"]
[null,null,null,null,"Turn- und Sportverein Diedelsheim e.V.","TSV Diedelsheim"]
[null,null,null,null,"Turn- und Sportverein Dürrenbüchig e.V.","TSV Dürrenbüchig"]
[null,null,null,null,"Turnverein 1846 Bretten e.V.","TV Bretten"]
[null,null,null,null,"Verein für Deutsche Schäferhunde e.V. Ortsgruppe Bretten-Rinklingen","OG Rinklingen"]
[null,null,null,null,"Verein für Sport, Gesundheit und Rehabilitation Bretten","VSG"]
[null,null,null,null,"VfB Bretten","VfB Bretten"]

{"sheet":"Ehrungsantrag","index":1,"n_rows":15,"n_cols":19,"rows_kept":15,"cut":false,"hidden":false,"merged":[[2,3,2,4],[3,3,3,4],[14,1,14,6],[6,3,6,4],[7,3,7,4],[8,3,8,4],[4,1,8,1],[4,3,4,4],[5,3,5,4]]}
[null,"Meldung zur Sportlerehrung 2022",null,null,null,null,"nur gelbe Felder ausfüllen"]
[null,"1. Vereinsdaten: (bitte vollständig ausfüllen)"]
[null,"VEREIN","Beschreibung","Eingabe Vereinsdaten"]
[null,"Verein","s. Dropdownliste",null,null,"Bitte die Eingabe Vereinsname nur über Dropdownliste auswählen!"]
[null,"1. Vorstand","Name, Vorname *"]
[null,null,"Straße",null,null,"* Pflichtfelder"]
[null,null,"PLZ ORT"]
[null,null,"Tel.Nr.",null,null,null,null,"Verein kurz nicht löschen"]
[null,null,"Email*",null,null,null,null,{"$f":"IF(D4>0,VLOOKUP(D4,VEREINE_GES,2,0),)","v":0}]
[]
[null,"2. Meldung Einzelsportler:",null,null,"HIER KLICKEN"]
[null,"3. Meldung Mannschaften:",null,null,"HIER KLICKEN",null,null,null,null,null,null,null,null,null,null,null,null,null,"z.Meisterschaft =Bezirksmeisterschaft\nund bei Ergänzung beschreibt man dann Jugend oder Senioren etc."]
[]
[]
[null,"Bitte den ausgefüllten Meldebogen bis zum 16.12.2022 an Sport@bretten.de senden"]

{"sheet":"MANNSCHAFTEN","index":2,"n_rows":21,"n_cols":27,"rows_kept":21,"cut":false,"hidden":false,"merged":[[2,1,2,8],[3,1,3,11],[4,1,4,11],[5,1,5,11],[1,2,1,4]]}
[null,"Mannschaftsmeldungen Sportlerehrung 2022",null,null,null,null,null,"nur gelbe Felder ausfüllen"]
[null,"Verein",{"$f":"IF(Ehrungsantrag!D4>0,Ehrungsantrag!D4,\"\")","v":""}]
[null,"Folgende Mannschaften werden zur Ehrung 2022 vorgeschlagen:"]
[null,"NEU: Wird eine Mannschaft für mehrere Leistungen vorgeschlagen bitte nur eine Zeile verwenden, \"höchster\" Erfolg als erstes aufführen!! Sind es mehr als 3 Leistungen, so kann eine weitere Zeile mit allen Angaben (Namen etc) verwendet werden"]
[null,"Hinweise: Bitte bei Platzierung nur Platz (als Zahl!) angeben; bei Art der Meisterschaft siehe Dropdownliste und diesen Wettkampf nehmen, der am besten passt!, Sportart bitte aus Dropdownliste auswählen!"]
[null,"Nach Ausfüllen der Daten \"Sportart\" bis \"ergänzende Beschreibung Meisterschaft\" auf Button M 1... drücken und dort die Spielerinnen u. Spieler der jeweiligen Mannschaft auflisten!"]
[]
[null,"Sportart","Mannschaftsname","LEISTUNG 1 (\"höchster Erfolg\")",null,null,"LEISTUNG 2",null,null,"LEISTUNG 3",null,null,"Anlage Mannschaft","MAKRO"]
["Nr","siehe Dropdownliste","keine Abkürzungen","Platz","Art der Meisterschaft\nsiehe Dropdownliste","Detailbezeichnung Wettkampf, Liga, Meisterschaft","Platz","Art der Meisterschaft\nsiehe Dropdownliste","Detailbezeichnung Wettkampf, Liga, Meisterschaft","Platz","Art der Meisterschaft\nsiehe Dropdownliste","Detailbezeichnung Wettkampf, Liga, Meisterschaft","Klicken","Verein","Verein kurz","Sportart","Mannschaft","L1 Platz","L 1 Art","L 1 Detail","L2 Platz","L 2 Art","L 2 Detail","L3 Platz","L 3 Art","L3 Detail","Name Eindeutig"]
[1,null,null,null,null,null,null,null,null,null,null,null,null,{"$f":"IF(B10>0,Ehrungsantrag!$D$4,)","v":0},{"$f":"IF(B10>0,Ehrungsantrag!$H$9,)","v":0},{"$f":"B10","v":0},0,0,0,0,0,0,{"$f":"I10","v":0},0,0,0,{"$f":"IF(C10>0,CONCATENATE(O10,\" \",A10,\" \",C10,),)","v":0}]
[2,null,null,null,null,null,null,null,null,null,null,null,null,{"$f":"IF(B11>0,Ehrungsantrag!$D$4,)","v":0},{"$f":"IF(B11>0,Ehrungsantrag!$H$9,)","v":0},{"$f":"B11","v":0},{"$f":"C11","v":0},{"$f":"D11","v":0},{"$f":"E11","v":0},{"$f":"F11","v":0},{"$f":"G11","v":0},{"$f":"H11","v":0},{"$f":"I11","v":0},{"$f":"J11","v":0},{"$f":"K11","v":0},{"$f":"L11","v":0},{"$f":"IF(C11>0,CONCATENATE(O11,\" \",A11,\" \",C11,),)","v":0}]
[3,null,null,null,null,null,null,null,null,null,null,null,null,{"$f":"IF(B12>0,Ehrungsantrag!$D$4,)","v":0},{"$f":"IF(B12>0,Ehrungsantrag!$H$9,)","v":0},0,0,0,0,0,0,0,0,0,0,0,0]
[4,null,null,null,null,null,null,null,null,null,null,null,null,{"$f":"IF(B13>0,Ehrungsantrag!$D$4,)","v":0},{"$f":"IF(B13>0,Ehrungsantrag!$H$9,)","v":0},0,0,0,0,0,0,0,0,0,0,0,0]
[5,null,null,null,null,null,null,null,null,null,null,null,null,{"$f":"IF(B14>0,Ehrungsantrag!$D$4,)","v":0},{"$f":"IF(B14>0,Ehrungsantrag!$H$9,)","v":0},0,0,0,0,0,0,0,0,0,0,0,0]
[6,null,null,null,null,null,null,null,null,null,null,null,null,{"$f":"IF(B15>0,Ehrungsantrag!$D$4,)","v":0},{"$f":"IF(B15>0,Ehrungsantrag!$H$9,)","v":0},0,0,0,0,0,0,0,0,0,0,0,0]
[7,null,null,null,null,null,null,null,null,null,null,null,null,{"$f":"IF(B16>0,Ehrungsantrag!$D$4,)","v":0},{"$f":"IF(B16>0,Ehrungsantrag!$H$9,)","v":0},0,0,0,0,0,0,0,0,0,0,0,0]
[8,null,null,null,null,null,null,null,null,null,null,null,null,{"$f":"IF(B17>0,Ehrungsantrag!$D$4,)","v":0},{"$f":"IF(B17>0,Ehrungsantrag!$H$9,)","v":0},0,0,0,0,0,0,0,0,0,0,0,0]
[9,null,null,null,null,null,null,null,null,null,null,null,null,{"$f":"IF(B18>0,Ehrungsantrag!$D$4,)","v":0},{"$f":"IF(B18>0,Ehrungsantrag!$H$9,)","v":0},0,0,0,0,0,0,0,0,0,0,0,0]
[10,null,null,null,null,null,null,null,null,null,null,null,null,{"$f":"IF(B19>0,Ehrungsantrag!$D$4,)","v":0},{"$f":"IF(B19>0,Ehrungsantrag!$H$9,)","v":0},0,0,0,0,0,0,0,0,0,0,0,0]
[]
[null,{"$f":"Ehrungsantrag!B15","v":"Bitte den ausgefüllten Meldebogen bis zum 16.12.2022 an Sport@bretten.de senden"}]

{"sheet":"Mannschaft","index":3,"n_rows":41,"n_cols":31,"rows_kept":41,"cut":false,"hidden":true,"merged":[[0,16,0,17],[14,1,14,5]]}
[null,"Mannschaftsmeldung 2019",null,null,null,null,null,null,null,null,null,null,null,null,null,null,"nur gelbe Felder ausfüllen"]
[null,"Verein"]
[null,"Verein kurz"]
[null,"Sportart"]
[null,"Mannschaft:"]
[null,"Platz"]
[null,"Leistung"]
[null,"Detail"]
[null,"Platz"]
[null,"Leistung"]
[null,"Detail"]
[null,"Platz"]
[null,"Leistung"]
[null,"Detail"]
[null,"Es werden nur vollständig ausgefüllte Nennungen (mit Email, Straße, Hausnummer, Ort) übernommen!",null,null,null,null,null,"LEISTUNG 1 (\"höchster Erfolg\")",null,null,"LEISTUNG 2",null,null,"LEISTUNG 3"]
["Nr","Sportler Name","Sportler Vorname","Email Adresse","Anschrift Straße","PLZ Ort\ns. Dropdownliste","SportartKopie","L1_Platz","L1_ART","L1_Detail","L2_Platz","L2_ART","L2_Detail","L3_Platz","L3_ART","L3_Detail","Trainer","Tiername","Verein","VereinKurz","Art (E/M)","Mannschaft","L1_Platz","L1_Art","L1_Detail","L2_Platz","L2_ART","L3_Detail","L3_Platz","L3_ART","L3_Detail"]
[1,null,null,null,null,null,{"$f":"IF($B17>0,$C$4,)","v":0},{"$f":"IF($B17>0,$C$6,)","v":0},{"$f":"IF($B17>0,$C$7,)","v":0},{"$f":"IF($B17>0,$C$8,)","v":0},{"$f":"IF($B17>0,$C$9,)","v":0},{"$f":"IF($B17>0,$C$10,)","v":0},{"$f":"IF($B17>0,$C$11,)","v":0},{"$f":"IF($B17>0,$C$12,)","v":0},{"$f":"IF($B17>0,$C$13,)","v":0},{"$f":"IF($B17>0,$C$14,)","v":0},null,null,{"$f":"IF($B17>0,$C$2,)","v":0},{"$f":"IF($B17>0,$C$3,)","v":0},{"$f":"IF(B17>0,\"M\",)","v":0},{"$f":"IF($B17>0,$C$5,)","v":"00:00:00"},{"$f":"IF($B17>0,H17,)","v":0},{"$f":"IF($B17>0,I17,)","v":"00:00:00"},{"$f":"IF($B17>0,J17,)","v":"00:00:00"},0,"00:00:00","00:00:00",0,"00:00:00","00:00:00"]
[2,null,null,null,null,null,{"$f":"IF($B18>0,$C$4,)","v":0},{"$f":"IF($B18>0,$C$6,)","v":0},{"$f":"IF($B18>0,$C$7,)","v":0},{"$f":"IF($B18>0,$C$8,)","v":0},{"$f":"IF($B18>0,$C$9,)","v":0},{"$f":"IF($B18>0,$C$10,)","v":0},{"$f":"IF($B18>0,$C$11,)","v":0},{"$f":"IF($B18>0,$C$12,)","v":0},{"$f":"IF($B18>0,$C$13,)","v":0},{"$f":"IF($B18>0,$C$14,)","v":0},null,null,{"$f":"IF($B18>0,$C$2,)","v":0},{"$f":"IF($B18>0,$C$3,)","v":0},0,{"$f":"IF($B18>0,$C$5,)","v":0},{"$f":"IF($B18>0,H18,)","v":0},{"$f":"IF($B18>0,I18,)","v":"00:00:00"},{"$f":"IF($B18>0,J18,)","v":"00:00:00"},{"$f":"IF($B18>0,K18,)","v":0},{"$f":"IF($B18>0,L18,)","v":"00:00:00"},{"$f":"IF($B18>0,M18,)","v":"00:00:00"},{"$f":"IF($B18>0,N18,)","v":0},{"$f":"IF($B18>0,O18,)","v":"00:00:00"},{"$f":"IF($B18>0,P18,)","v":"00:00:00"}]
[3,null,null,null,null,null,0,0,0,0,0,0,0,0,0,0,null,null,0,0,0,0,0,"00:00:00","00:00:00",0,"00:00:00","00:00:00",0,"00:00:00","00:00:00"]
[4,null,null,null,null,null,0,0,0,0,0,0,0,0,0,0,null,null,0,0,0,0,0,"00:00:00","00:00:00",0,"00:00:00","00:00:00",0,"00:00:00","00:00:00"]
[5,null,null,null,null,null,0,0,0,0,0,0,0,0,0,0,null,null,0,0,0,0,0,"00:00:00","00:00:00",0,"00:00:00","00:00:00",0,"00:00:00","00:00:00"]
[6,null,null,null,null,null,0,0,0,0,0,0,0,0,0,0,null,null,0,0,0,0,0,"00:00:00","00:00:00",0,"00:00:00","00:00:00",0,"00:00:00","00:00:00"]
[7,null,null,null,null,null,0,0,0,0,0,0,0,0,0,0,null,null,0,0,0,0,0,"00:00:00","00:00:00",0,"00:00:00","00:00:00",0,"00:00:00","00:00:00"]
[8,null,null,null,null,null,0,0,0,0,0,0,0,0,0,0,null,null,0,0,0,0,0,"00:00:00","00:00:00",0,"00:00:00","00:00:00",0,"00:00:00","00:00:00"]
[9,null,null,null,null,null,0,0,0,0,0,0,0,0,0,0,null,null,0,0,0,0,0,"00:00:00","00:00:00",0,"00:00:00","00:00:00",0,"00:00:00","00:00:00"]
[10,null,null,null,null,null,0,0,0,0,0,0,0,0,0,0,null,null,0,0,0,0,0,"00:00:00","00:00:00",0,"00:00:00","00:00:00",0,"00:00:00","00:00:00"]
[11,null,null,null,null,null,0,0,0,0,0,0,0,0,0,0,null,null,0,0,0,0,0,"00:00:00","00:00:00",0,"00:00:00","00:00:00",0,"00:00:00","00:00:00"]
[12,null,null,null,null,null,0,0,0,0,0,0,0,0,0,0,null,null,0,0,0,0,0,"00:00:00","00:00:00",0,"00:00:00","00:00:00",0,"00:00:00","00:00:00"]
[13,null,null,null,null,null,0,0,0,0,0,0,0,0,0,0,null,null,0,0,0,0,0,"00:00:00","00:00:00",0,"00:00:00","00:00:00",0,"00:00:00","00:00:00"]
[14,null,null,null,null,null,0,0,0,0,0,0,0,0,0,0,null,null,0,0,0,0,0,"00:00:00","00:00:00",0,"00:00:00","00:00:00",0,"00:00:00","00:00:00"]
[15,null,null,null,null,null,0,0,0,0,0,0,0,0,0,0,null,null,0,0,0,0,0,"00:00:00","00:00:00",0,"00:00:00","00:00:00",0,"00:00:00","00:00:00"]
[16,null,null,null,null,null,0,0,0,0,0,0,0,0,0,0,null,null,0,0,0,0,0,"00:00:00","00:00:00",0,"00:00:00","00:00:00",0,"00:00:00","00:00:00"]
[17,null,null,null,null,null,0,0,0,0,0,0,0,0,0,0,null,null,0,0,0,0,0,"00:00:00","00:00:00",0,"00:00:00","00:00:00",0,"00:00:00","00:00:00"]
[18,null,null,null,null,null,0,0,0,0,0,0,0,0,0,0,null,null,0,0,0,0,0,"00:00:00","00:00:00",0,"00:00:00","00:00:00",0,"00:00:00","00:00:00"]
[19,null,null,null,null,null,0,0,0,0,0,0,0,0,0,0,null,null,0,0,0,0,0,"00:00:00","00:00:00",0,"00:00:00","00:00:00",0,"00:00:00","00:00:00"]
[20,null,null,null,null,null,0,0,0,0,0,0,0,0,0,0,null,null,0,0,0,0,0,"00:00:00","00:00:00",0,"00:00:00","00:00:00",0,"00:00:00","00:00:00"]
[21,null,null,null,null,null,0,0,0,0,0,0,0,0,0,0,null,null,0,0,0,0,0,"00:00:00","00:00:00",0,"00:00:00","00:00:00",0,"00:00:00","00:00:00"]
[22,null,null,null,null,null,0,0,0,0,0,0,0,0,0,0,null,null,0,0,0,0,0,"00:00:00","00:00:00",0,"00:00:00","00:00:00",0,"00:00:00","00:00:00"]
[23,null,null,null,null,null,0,0,0,0,0,0,0,0,0,0,null,null,0,0,0,0,0,"00:00:00","00:00:00",0,"00:00:00","00:00:00",0,"00:00:00","00:00:00"]
[24,null,null,null,null,null,0,0,0,0,0,0,0,0,0,0,null,null,0,0,0,0,0,"00:00:00","00:00:00",0,"00:00:00","00:00:00",0,"00:00:00","00:00:00"]
[25,null,null,null,null,null,0,0,0,0,0,0,0,0,0,0,null,null,0,0,0,0,0,"00:00:00","00:00:00",0,"00:00:00","00:00:00",0,"00:00:00","00:00:00"]

{"sheet":"EINZEL","index":4,"n_rows":35,"n_cols":32,"rows_kept":35,"cut":false,"hidden":false,"merged":[[2,1,2,12],[3,1,3,12],[4,1,4,12]]}
[null,"Einzelsportlermeldung Sportlerehrung 2022",null,null,null,null,null,null,"nur gelbe Felder ausfüllen"]
[null,"Verein",{"$f":"IF(Ehrungsantrag!D4>0,Ehrungsantrag!D4,\"\")","v":""}]
[null,"Folgende Einzelsportler werden zur Ehrung 2022 vorgeschlagen:"]
[null,"NEU: Wird ein Sportler mit mehreren Leistungen vorgeschlagen bitte nur eine Zeile verwenden, \"höchster\" Erfolg als erstes aufführen!! Sind es mehr als 3 Leistungen, so kann eine weitere Zeile mit allen Angaben (Namen etc) verwendet werden"]
[null,"Hinweise: Bitte bei Platzierung nur Platz (als Zahl!) angeben; bei Art der Meisterschaft siehe Dropdownliste und diesen Wettkampf nehmen, der am besten passt!, Sportart bitte aus Dropdownliste auswählen!"]
[]
[null,null,null,null,null,null,null,"LEISTUNG 1 (\"höchster Erfolg\")",null,null,"LEISTUNG 2",null,null,"LEISTUNG 3"]
["Nr","Sportler Name","Sportler Vorname","Email Adresse","Anschrift Straße","PLZ Ort","Sportart (s.Dropdownliste)","Platz","Art der Meisterschaft\nsiehe Dropdownliste","Detailbezeichnung Wettkampf, Liga, Meisterschaft","Platz","Art der Meisterschaft\nsiehe Dropdownliste","Detailbezeichnung Wettkampf, Liga, Meisterschaft","Platz","Art der Meisterschaft\nsiehe Dropdownliste","Detailbezeichnung Wettkampf, Liga, Meisterschaft","Trainer","Tiername","Verein","Verein kurz","Art (E/M)","Mannschaft","L1 Platz","L 1 Art","L1 Detail","L2 Platz","L 2 Art","L 2 Detail","L3 Platz","L 3 Art","L 3 Detail","Sportart"]
[1,null,null,null,null,null,null,null,null,null,null,null,null,null,null,null,null,null,{"$f":"IF(B9>0,Ehrungsantrag!$D$4,)","v":0},{"$f":"IF(B9>0,Ehrungsantrag!$H$9,)","v":0},{"$f":"IF(B9>0,\"E\",)","v":0},null,{"$f":"H9","v":0},{"$f":"I9","v":0},0,0,0,0,0,0,0,{"$f":"G9","v":0}]
[2,null,null,null,null,null,null,null,null,null,null,null,null,null,null,null,null,null,{"$f":"IF(B10>0,Ehrungsantrag!$D$4,)","v":0},{"$f":"IF(B10>0,Ehrungsantrag!$H$9,)","v":0},{"$f":"IF(B10>0,\"E\",)","v":0},null,{"$f":"H10","v":0},{"$f":"I10","v":0},{"$f":"J10","v":0},{"$f":"K10","v":0},{"$f":"L10","v":0},{"$f":"M10","v":0},{"$f":"N10","v":0},{"$f":"O10","v":0},{"$f":"P10","v":0},0]
[3,null,null,null,null,null,null,null,null,null,null,null,null,null,null,null,null,null,{"$f":"IF(B11>0,Ehrungsantrag!$D$4,)","v":0},{"$f":"IF(B11>0,Ehrungsantrag!$H$9,)","v":0},0,null,0,0,0,0,0,0,0,0,0,0]
[4,null,null,null,null,null,null,null,null,null,null,null,null,null,null,null,null,null,{"$f":"IF(B12>0,Ehrungsantrag!$D$4,)","v":0},{"$f":"IF(B12>0,Ehrungsantrag!$H$9,)","v":0},0,null,0,0,0,0,0,0,0,0,0,0]
[5,null,null,null,null,null,null,null,null,null,null,null,null,null,null,null,null,null,{"$f":"IF(B13>0,Ehrungsantrag!$D$4,)","v":0},{"$f":"IF(B13>0,Ehrungsantrag!$H$9,)","v":0},0,null,0,0,0,0,0,0,0,0,0,0]
[6,null,null,null,null,null,null,null,null,null,null,null,null,null,null,null,null,null,{"$f":"IF(B14>0,Ehrungsantrag!$D$4,)","v":0},{"$f":"IF(B14>0,Ehrungsantrag!$H$9,)","v":0},0,null,0,0,0,0,0,0,0,0,0,0]
[7,null,null,null,null,null,null,null,null,null,null,null,null,null,null,null,null,null,{"$f":"IF(B15>0,Ehrungsantrag!$D$4,)","v":0},{"$f":"IF(B15>0,Ehrungsantrag!$H$9,)","v":0},0,null,0,0,0,0,0,0,0,0,0,0]
[8,null,null,null,null,null,null,null,null,null,null,null,null,null,null,null,null,null,{"$f":"IF(B16>0,Ehrungsantrag!$D$4,)","v":0},{"$f":"IF(B16>0,Ehrungsantrag!$H$9,)","v":0},0,null,0,0,0,0,0,0,0,0,0,0]
[9,null,null,null,null,null,null,null,null,null,null,null,null,null,null,null,null,null,{"$f":"IF(B17>0,Ehrungsantrag!$D$4,)","v":0},{"$f":"IF(B17>0,Ehrungsantrag!$H$9,)","v":0},0,null,0,0,0,0,0,0,0,0,0,0]
[10,null,null,null,null,null,null,null,null,null,null,null,null,null,null,null,null,null,{"$f":"IF(B18>0,Ehrungsantrag!$D$4,)","v":0},{"$f":"IF(B18>0,Ehrungsantrag!$H$9,)","v":0},0,null,0,0,0,0,0,0,0,0,0,0]
[11,null,null,null,null,null,null,null,null,null,null,null,null,null,null,null,null,null,{"$f":"IF(B19>0,Ehrungsantrag!$D$4,)","v":0},{"$f":"IF(B19>0,Ehrungsantrag!$H$9,)","v":0},0,null,0,0,0,0,0,0,0,0,0,0]
[12,null,null,null,null,null,null,null,null,null,null,null,null,null,null,null,null,null,{"$f":"IF(B20>0,Ehrungsantrag!$D$4,)","v":0},{"$f":"IF(B20>0,Ehrungsantrag!$H$9,)","v":0},0,null,0,0,0,0,0,0,0,0,0,0]
[13,null,null,null,null,null,null,null,null,null,null,null,null,null,null,null,null,null,{"$f":"IF(B21>0,Ehrungsantrag!$D$4,)","v":0},{"$f":"IF(B21>0,Ehrungsantrag!$H$9,)","v":0},0,null,0,0,0,0,0,0,0,0,0,0]
[14,null,null,null,null,null,null,null,null,null,null,null,null,null,null,null,null,null,{"$f":"IF(B22>0,Ehrungsantrag!$D$4,)","v":0},{"$f":"IF(B22>0,Ehrungsantrag!$H$9,)","v":0},0,null,0,0,0,0,0,0,0,0,0,0]
[15,null,null,null,null,null,null,null,null,null,null,null,null,null,null,null,null,null,{"$f":"IF(B23>0,Ehrungsantrag!$D$4,)","v":0},{"$f":"IF(B23>0,Ehrungsantrag!$H$9,)","v":0},0,null,0,0,0,0,0,0,0,0,0,0]
[16,null,null,null,null,null,null,null,null,null,null,null,null,null,null,null,null,null,{"$f":"IF(B24>0,Ehrungsantrag!$D$4,)","v":0},{"$f":"IF(B24>0,Ehrungsantrag!$H$9,)","v":0},0,null,0,0,0,0,0,0,0,0,0,0]
[17,null,null,null,null,null,null,null,null,null,null,null,null,null,null,null,null,null,{"$f":"IF(B25>0,Ehrungsantrag!$D$4,)","v":0},{"$f":"IF(B25>0,Ehrungsantrag!$H$9,)","v":0},0,null,0,0,0,0,0,0,0,0,0,0]
[18,null,null,null,null,null,null,null,null,null,null,null,null,null,null,null,null,null,{"$f":"IF(B26>0,Ehrungsantrag!$D$4,)","v":0},{"$f":"IF(B26>0,Ehrungsantrag!$H$9,)","v":0},0,null,0,0,0,0,0,0,0,0,0,0]
[19,null,null,null,null,null,null,null,null,null,null,null,null,null,null,null,null,null,{"$f":"IF(B27>0,Ehrungsantrag!$D$4,)","v":0},{"$f":"IF(B27>0,Ehrungsantrag!$H$9,)","v":0},0,null,0,0,0,0,0,0,0,0,0,0]
[20,null,null,null,null,null,null,null,null,null,null,null,null,null,null,null,null,null,{"$f":"IF(B28>0,Ehrungsantrag!$D$4,)","v":0},{"$f":"IF(B28>0,Ehrungsantrag!$H$9,)","v":0},0,null,0,0,0,0,0,0,0,0,0,0]
[21,null,null,null,null,null,null,null,null,null,null,null,null,null,null,null,null,null,{"$f":"IF(B29>0,Ehrungsantrag!$D$4,)","v":0},{"$f":"IF(B29>0,Ehrungsantrag!$H$9,)","v":0},0,null,0,0,0,0,0,0,0,0,0,0]
[22,null,null,null,null,null,null,null,null,null,null,null,null,null,null,null,null,null,{"$f":"IF(B30>0,Ehrungsantrag!$D$4,)","v":0},{"$f":"IF(B30>0,Ehrungsantrag!$H$9,)","v":0},0,null,0,0,0,0,0,0,0,0,0,0]
[23,null,null,null,null,null,null,null,null,null,null,null,null,null,null,null,null,null,{"$f":"IF(B31>0,Ehrungsantrag!$D$4,)","v":0},{"$f":"IF(B31>0,Ehrungsantrag!$H$9,)","v":0},0,null,0,0,0,0,0,0,0,0,0,0]
[24,null,null,null,null,null,null,null,null,null,null,null,null,null,null,null,null,null,{"$f":"IF(B32>0,Ehrungsantrag!$D$4,)","v":0},{"$f":"IF(B32>0,Ehrungsantrag!$H$9,)","v":0},0,null,0,0,0,0,0,0,0,0,0,0]
[25,null,null,null,null,null,null,null,null,null,null,null,null,null,null,null,null,null,{"$f":"IF(B33>0,Ehrungsantrag!$D$4,)","v":0},{"$f":"IF(B33>0,Ehrungsantrag!$H$9,)","v":0},0,null,0,0,0,0,0,0,0,0,0,0]
[]
[null,{"$f":"Ehrungsantrag!B15","v":"Bitte den ausgefüllten Meldebogen bis zum 16.12.2022 an Sport@bretten.de senden"}]